Workbook

Sheet 3.5.4 InWallFinish
B1: JLR -BiW PC structure tender | E1: COMPANY:
B2: 3. Architectural, Civil and Structural / Architektúra
B4: Item | C4: Popis | D4: Unit | E4: Quantity | F4: Unit Price | G4: Item Price | H4: Sub Total | I4: Total (EUR)
B6: 3.5.4 | C6: Povrchové úpravy | I6: =SUM(G7:G42) -> 0
B8: 3.5.4.2 | C8: Maľba, farba biela | H8: =SUM(G9:G24) -> 0
C9: Os E
B10: 3.5.4.2.1-01 | C10: Os E strana MP&L: Maľba omietok, 1 x penetrácia + 2 x maľba, vratane lesenia | D10: m2 | E10: =+(11*20)*6 -> 1320 | G10: =F10*E10 -> 0
B11: 3.5.4.2.2-02 | C11: Os E strana Body: Maľba omietok, 1 x penetrácia + 2 x maľba, vratane lesenia | D11: m2 | E11: =+(11*20)*6 -> 1320 | G11: 0
C12: Tear down
B13: 3.5.4.2.1-03 | C13: Vonkajsie steny: Maľba omietok, 1 x penetrácia + 2 x maľba, vratane lesenia | D13: m2 | E13: =55.5*6.9 -> 382.95 | G13: =F13*E13 -> 0
B14: 3.5.4.2.1-04 | C14: Vnutorne steny: Maľba omietok, 1 x penetrácia + 2 x maľba, vratane lesenia | D14: m2 | E14: =+(51+32)*6.5+(27+16)*3 -> 668.5 | G14: =F14*E14 -> 0
B15: 3.5.4.2.1-05 | C15: Stropy: Maľba omietok, 1 x penetrácia + 2 x maľba, vratane lesenia | D15: m2 | E15: =292-63 -> 229 | G15: 0
C16: Schodiska spine
B17: 3.5.4.2.1-06 | C17: Vnutorne steny: Maľba omietok, 1 x penetrácia + 2 x maľba, vratane lesenia | D17: m2 | E17: =22.6*(9.5+3)*2 -> 565 | G17: =F17*E17 -> 0
B18: 3.5.4.2.1-07 | C18: Stropy, cela ramien: Maľba omietok, 1 x penetrácia + 2 x maľba, vratane lesenia | D18: m2 | E18: =25*2.2*2 -> 110 | G18: 0
C19: Vytahove sachty
B20: 3.5.4.2.1-08 | C20: Osobne vytahy: Maľba zelezobetonovych stien, 1 x penetrácia + 2 x maľba, vratane lesenia | D20: m2 | E20: =9.7*(9.5)*2 -> 184.3 | G20: =F20*E20 -> 0
B21: 3.5.4.2.1-09 | C21: Nakladny vytah: Maľba zelezobetonovych stien, 1 x penetrácia + 2 x maľba, vratane lesenia | D21: m2 | E21: =10*(9.5)*2 -> 190 | G21: 0
B22: 3.5.4.2.1-10 | C22: Osobne vytahy - protiprasny nater: Maľba jamy, 1 x penetrácia + 2 x maľba, vratane lesenia | D22: m2 | E22: =(6+9.7*2)*2 -> 50.8 | G22: =F22*E22 -> 0
B23: 3.5.4.2.1-11 | C23: Nakladny vytah - protiprasny nater: Maľba jamy, 1 x penetrácia + 2 x maľba, vratane lesenia | D23: m2 | E23: =6.3+10*2 -> 26.3 | G23: 0
B25: 3.5.4.5 | C25: Omietka na monolitoch - SADROVA OMIETKA | H25: =SUM(G26:G42) -> 0
C26: Os E
B27: 3.5.4.5-01 | C27: Os E strana MP&L: omietanie vratane penetracie, rohovych profilov, dilatacnych profilov, lesenia, atd.. | D27: m2 | E27: 1320 | G27: =F27*E27 -> 0
B28: 3.5.4.5-02 | C28: Os E strana Body: omietanie vratane penetracie, rohovych profilov, dilatacnych profilov, lesenia, atd.. | D28: m2 | E28: 1320 | G28: =F28*E28 -> 0
B29: 3.5.4.5-03 | C29: Priplatok za vystuzujucu sietku vkladanu do omietky | D29: m2 | E29: 132 | G29: 0
C30: Tear down
B31: 3.5.4.5-04 | C31: Vonkajsie steny: omietanie vratane penetracie, rohovych profilov, dilatacnych profilov, lesenia, atd.. | D31: m2 | E31: 382.95 | G31: =F31*E31 -> 0
B32: 3.5.4.5-05 | C32: Vnutorne steny: omietanie vratane penetracie, rohovych profilov, dilatacnych profilov, lesenia, atd.. | D32: m2 | E32: 668.5 | G32: =F32*E32 -> 0
B33: 3.5.4.5-06 | C33: Stropy: omietanie vratane penetracie, rohovych profilov, dilatacnych profilov, lesenia, atd.. | D33: m2 | E33: 229 | G33: 0
B34: 3.5.4.5-07 | C34: Priplatok za vystuzujucu sietku vkladanu do omietky | D34: m2 | E34: =+E31+E32 -> 1051.45 | G34: =F34*E34 -> 0
B35: 3.5.4.5-07a | C35: Priplatok za vystuzujucu sietku vkladanu do omietky-STROP | D35: m2 | E35: =+E33 -> 229 | G35: 0
C36: Schodiska spine
B37: 3.5.4.2.1-08 | C37: Steny: omietanie vratane penetracie, rohovych profilov, lesenia, atd.. | D37: m2 | E37: 565 | G37: =F37*E37 -> 0
B38: 3.5.4.2.1-09 | C38: Stropy, cela ramien: omietanie vratane penetracie, rohovych profilov, lesenia, atd.. | D38: m2 | E38: 110 | G38: 0
B39: 3.5.4.5-10 | C39: Priplatok za vystuzujucu sietku vkladanu do omietky | D39: m2 | E39: =+E37 -> 565 | G39: 0
B40: 3.5.4.5-10a | C40: Priplatok za vystuzujucu sietku vkladanu do omietky-STROP, CELA | D40: m2 | E40: =+E38 -> 110 | G40: =F40*E40 -> 0
B41: 3.5.4.5-11 | C41: Priplatok za dilatacny profil | D41: m | E41: =22.6*4*4 -> 361.6 | G41: 0
B43: 3.5.4 | C43: =C6 -> Povrchové úpravy | I43: =SUM(H7:H42) -> 0
